bitfinex/quotes_BTCUSD_20250211
["timestamp","ask_amount","ask_price","bid_price","bid_amount"]
[1739272295127,0.167005,98036.0,98035.0,0.00022386]
[1739272300322,0.16685069,98036.0,98035.0,0.00022386]
[1739272301024,0.18590534,98036.0,98035.0,0.00022386]
[1739272304378,0.16685069,98036.0,98035.0,0.00022386]
[1739272313912,0.16695729,98036.0,98035.0,0.00022386]
[1739272315108,0.01395229,98036.0,98035.0,0.00022386]
[1739272315311,0.01395229,98036.0,98035.0,0.07592386]
[1739272315533,0.16695729,98036.0,98035.0,0.07592386]
[1739272318844,0.01395229,98036.0,98035.0,0.22892986]
[1739272319046,0.01395229,98036.0,98035.0,0.07592386]
[1739272319933,0.00695229,98036.0,98035.0,0.07592386]
[1739272320138,0.0001066,98036.0,98035.0,0.07592386]
[1739272320365,0.0011066,98036.0,98035.0,0.07592386]
[1739272321121,0.0001066,98036.0,98035.0,0.07692386]
[1739272322275,0.0011066,98036.0,98035.0,0.07692386]
[1739272322834,0.0011066,98036.0,98035.0,0.07592386]
[1739272323041,0.0011066,98036.0,98035.0,0.07692386]
[1739272323214,0.0011066,98036.0,98035.0,0.07592386]
[1739272323215,0.0001066,98036.0,98035.0,0.07592386]
[1739272323418,0.0011066,98036.0,98035.0,0.07592386]
[1739272323628,0.0011066,98036.0,98035.0,0.07692386]
[1739272332472,0.0011066,98036.0,98035.0,0.00122386]
[1739272344407,0.0011066,98036.0,98035.0,0.00022386]
[1739272344614,0.0001066,98036.0,98035.0,0.00122386]
[1739272344955,0.0001066,98036.0,98035.0,0.00222386]
[1739272351895,0.0001066,98036.0,98030.0,0.14553794]
[1739272352095,0.0001066,98036.0,98029.0,0.0832]
[1739272352305,0.0001066,98036.0,98030.0,0.153013]
[1739272352957,0.0001066,98036.0,98030.0,0.154013]
[1739272353082,0.0001066,98036.0,98031.0,0.153012]
[1739272353279,0.0001066,98036.0,98030.0,0.154014]
[1739272353936,0.0001066,98036.0,98030.0,0.153014]
[1739272354767,0.0001066,98036.0,98029.0,0.0832]
[1739272354984,0.0001066,98036.0,98031.0,0.153012]
[1739272355920,0.0001066,98036.0,98030.0,0.153014]
[1739272356336,0.0001066,98036.0,98031.0,0.153011]
[1739272358464,0.0001066,98036.0,98029.0,0.236215]
[1739272358669,0.0001066,98036.0,98030.0,0.153014]
[1739272360373,0.0021066,98036.0,98030.0,0.00022386]
[1739272360574,0.0021066,98036.0,98031.0,0.153012]
[1739272360890,0.0021066,98036.0,98030.0,0.00022386]
[1739272361313,0.0021066,98036.0,98030.0,0.15323686]
[1739272361508,0.0001066,98036.0,98030.0,0.15323686]
[1739272361921,0.0021066,98036.0,98030.0,0.15323686]
[1739272363519,0.0021066,98036.0,98030.0,0.20424086]
[1739272363730,0.0021066,98036.0,98031.0,0.153012]
[1739272364082,0.0021066,98036.0,98030.0,0.00022386]
[1739272364678,0.0001066,98036.0,98030.0,0.00022386]
[1739272364878,0.0001066,98036.0,98031.0,0.153012]
[1739272365277,0.0021066,98036.0,98031.0,0.153012]
[1739272365915,0.0001066,98036.0,98031.0,0.153012]
[1739272366296,0.0021066,98036.0,98031.0,0.153012]
[1739272366480,0.0021066,98036.0,98035.0,0.153006]
[1739272367215,0.0021066,98036.0,98035.0,0.1540259]
[1739272367789,0.0001066,98036.0,98035.0,0.2305259]
[1739272367994,0.0001066,98036.0,98035.0,0.229506]
[1739272368229,0.0011066,98036.0,98035.0,0.33200965]
[1739272368407,0.0011066,98036.0,98035.0,0.37900965]
[1739272368801,0.0001066,98036.0,98035.0,0.37900965]
[1739272369183,0.0011066,98036.0,98035.0,0.37900965]
[1739272369635,0.0001066,98036.0,98035.0,0.37900965]
[1739272370040,0.0001066,98036.0,98035.0,0.38000965]
[1739272370862,0.0011066,98036.0,98035.0,0.38300965]
[1739272379943,0.0011066,98036.0,98035.0,0.33600965]
[1739272381563,0.0011066,98036.0,98035.0,0.25950965]
[1739272397453,0.01067028,98036.0,98035.0,0.25950965]
[1739272398535,0.02980354,98036.0,98035.0,0.25950965]
[1739272402337,0.01067028,98036.0,98035.0,0.25950965]
[1739272403353,0.0011066,98036.0,98035.0,0.25950965]
[1739272403664,0.0011066,98036.0,98035.0,0.004]
[1739272404206,0.02024024,98036.0,98035.0,0.004]
[1739272404667,0.01924024,98036.0,98035.0,0.001]
[1739272404857,0.17224524,98036.0,98034.0,0.3216]
[1739272405058,0.17324524,98036.0,98035.0,0.003]
[1739272405239,0.02024024,98036.0,98035.0,0.004]
[1739272405440,0.02024024,98036.0,98035.0,0.003]
[1739272405638,0.02024024,98036.0,98035.0,0.004]
[1739272405840,0.02980022,98036.0,98035.0,0.004]
[1739272406487,0.02980022,98036.0,98035.0,0.003]
[1739272406620,0.02880022,98036.0,98034.0,0.3216]
[1739272407327,0.02880022,98036.0,98035.0,0.001]
[1739272407532,0.00966658,98036.0,98035.0,0.001]
[1739272408456,0.02878472,98036.0,98035.0,0.001]
[1739272408844,0.02878472,98036.0,98034.0,0.3216]
[1739272409082,0.02878472,98036.0,98030.0,0.00022386]
[1739272409411,0.01911814,98035.0,98030.0,0.00022386]
[1739272409909,0.00955998,98034.0,98030.0,0.00022386]
[1739272410246,0.00955998,98034.0,98030.0,0.00122386]
[1739272410651,0.00955998,98033.0,98030.0,0.00022386]
[1739272410854,0.02867812,98033.0,98030.0,0.00122386]
[1739272411251,0.02867812,98033.0,98030.0,0.00322386]
[1739272411694,0.00955998,98032.0,98030.0,0.00322386]
[1739272411867,0.00955998,98032.0,98030.0,0.15623786]
[1739272412053,0.02867812,98032.0,98030.0,0.15623786]
[1739272412463,0.02867812,98032.0,98030.0,0.00322386]
[1739272412672,0.02867812,98032.0,98030.0,0.15323786]
[1739272412879,0.02867812,98032.0,98030.0,0.15423786]
[1739272413089,0.01911814,98031.0,98030.0,0.15723786]
[1739272413291,0.02867812,98031.0,98030.0,0.15623786]
[1739272413547,0.02867812,98031.0,98030.0,0.15423786]
[1739272413916,0.02867812,98031.0,98030.0,0.15723786]
[1739272414219,0.02867812,98031.0,98030.0,0.15525782]
[1739272414582,0.02967812,98031.0,98030.0,0.15825782]
[1739272414988,0.02967812,98031.0,98030.0,0.25904855]
[1739272415237,0.02967812,98031.0,98030.0,0.25702859]
[1739272415483,0.02967812,98031.0,98030.0,0.26819842]
[1739272415712,0.01055998,98031.0,98030.0,0.26819842]
[1739272415916,0.0001066,98036.0,98035.0,0.153006]
[1739272416171,0.0001066,98036.0,98035.0,0.15402584]
[1739272417826,0.0001066,98036.0,98035.0,0.15702584]
[1739272418458,0.0001066,98036.0,98035.0,0.15802584]
[1739272420007,0.0001066,98036.0,98035.0,0.157006]
[1739272424823,0.0001066,98036.0,98035.0,0.15802585]
[1739272426722,0.0001066,98036.0,98035.0,0.157006]
[1739272427507,0.0001066,98036.0,98035.0,0.15802584]
[1739272430844,0.00966268,98036.0,98035.0,0.15802584]
[1739272431095,0.00966268,98036.0,98035.0,0.157006]
[1739272431252,0.00966268,98036.0,98035.0,0.15802585]
[1739272431853,0.00966268,98036.0,98035.0,0.2605295]
[1739272432052,0.00966268,98036.0,98035.0,0.25950965]
[1739272433650,0.0001066,98036.0,98035.0,0.25950965]
[1739272436052,0.00966561,98036.0,98035.0,0.25950965]
[1739272437540,0.0001066,98036.0,98035.0,0.25950965]
[1739272437746,0.0001066,98036.0,98035.0,0.25650965]
[1739272437976,0.0011066,98036.0,98035.0,0.25850965]
[1739272438356,0.0011066,98036.0,98035.0,0.26150965]
[1739272441799,0.01066939,98036.0,98035.0,0.26150965]
[1739272443937,0.0011066,98036.0,98035.0,0.26150965]
[1739272446493,0.0011066,98036.0,98035.0,0.66540965]
[1739272447353,0.0001066,98036.0,98035.0,0.69424747]
[1739272447598,0.0001066,98036.0,98035.0,0.69124747]
[1739272447770,0.0011066,98036.0,98035.0,0.69724747]
[1739272447974,0.0021066,98036.0,98035.0,0.70024747]
[1739272448288,0.0011066,98036.0,98035.0,0.67240965]
[1739272448471,0.0021066,98036.0,98035.0,0.67840965]
[1739272449096,0.0021066,98036.0,98035.0,0.71023628]
[1739272449325,0.0021066,98036.0,98035.0,0.67840965]
[1739272450380,0.0021066,98036.0,98035.0,0.72740965]
[1739272450576,0.0021066,98036.0,98035.0,1.4433214]
[1739272451208,0.0001066,98036.0,98035.0,1.4343214]
[1739272451415,0.0001066,98036.0,98035.0,1.4493214]
[1739272451681,0.0021066,98036.0,98035.0,1.4563214]
[1739272452245,0.0021066,98036.0,98035.0,1.42450965]
[1739272452928,0.0021066,98036.0,98035.0,1.45630031]
[1739272454454,0.0021066,98036.0,98035.0,1.42450965]
[1739272469253,0.0021066,98036.0,98035.0,1.28320965]
[1739272473472,0.0021066,98036.0,98035.0,1.36260965]
[1739272474451,0.0021066,98036.0,98035.0,0.82850965]
[1739272479262,0.0021066,98036.0,98035.0,0.86031669]
[1739272479663,0.0021066,98036.0,98035.0,0.78091669]
[1739272481901,0.0021066,98036.0,98035.0,0.79091669]
[1739272483009,0.0021066,98036.0,98035.0,0.86631669]
[1739272483701,0.0011066,98036.0,98035.0,0.85131669]
[1739272483903,0.0001066,98036.0,98035.0,0.84431669]
[1739272484046,0.0001066,98036.0,98035.0,1.37841669]
[1739272484250,0.0011066,98036.0,98035.0,1.38541669]
[1739272485079,0.0011066,98036.0,98035.0,1.39941669]
[1739272485486,0.0011066,98036.0,98035.0,1.38541669]
[1739272486426,0.0011066,98036.0,98035.0,1.40041669]
[1739272489072,0.0011066,98036.0,98035.0,1.39041669]
[1739272489426,0.0011066,98036.0,98035.0,1.32501669]
[1739272490231,0.0011066,98036.0,98035.0,1.33233669]
[1739272511812,6e-07,98036.0,98035.0,1.41103669]
[1739272512413,2e-07,98046.0,98035.0,1.44403669]
[1739272512644,8.7e-07,98046.0,98045.0,0.49419365]
[1739272512845,8.7e-07,98046.0,98045.0,0.66106019]
[1739272514519,8.7e-07,98046.0,98045.0,0.68306019]
[1739272516010,8.7e-07,98046.0,98045.0,1.53876019]
[1739272516937,8.7e-07,98046.0,98045.0,1.51676019]
[1739272517087,8.7e-07,98046.0,98045.0,1.52376019]
[1739272517515,8.7e-07,98046.0,98045.0,1.53876019]
[1739272517709,8.7e-07,98046.0,98045.0,1.55948994]
[1739272517960,8.7e-07,98046.0,98045.0,1.45778994]
[1739272518902,8.7e-07,98046.0,98045.0,1.45306202]
[1739272519495,8.7e-07,98046.0,98045.0,1.46806202]
[1739272521491,0.00010747,98046.0,98045.0,1.46806202]
[1739272523586,0.00010747,98046.0,98045.0,1.45806202]
[1739272523794,0.00010747,98046.0,98045.0,1.46806202]
[1739272525332,4.7e-07,98046.0,98045.0,1.49106202]
[1739272527441,4.7e-07,98046.0,98045.0,1.57186202]
[1739272527944,1.7e-07,98052.0,98051.0,0.335981]
[1739272528279,1.7e-07,98052.0,98051.0,1.32599169]
[1739272529230,1.7e-07,98052.0,98051.0,1.34099169]
[1739272530266,1.7e-07,98052.0,98051.0,1.34799169]
[1739272532396,1.7e-07,98052.0,98051.0,1.33299169]
[1739272532705,1.7e-07,98052.0,98051.0,1.34799169]
[1739272533115,1.7e-07,98052.0,98051.0,1.32599169]
[1739272533494,1.7e-07,98052.0,98051.0,1.34799169]
[1739272533703,1.7e-07,98052.0,98051.0,1.34099169]
[1739272533872,1.7e-07,98052.0,98051.0,1.34799169]
[1739272534385,1.7e-07,98052.0,98051.0,1.35799169]
[1739272534566,1.7e-07,98052.0,98051.0,1.43879169]
[1739272535132,0.0001066,98075.0,98074.0,0.312945]
[1739272535285,7.292e-05,98075.0,98074.0,0.75436865]
[1739272535490,7.292e-05,98075.0,98074.0,0.78615944]
[1739272535694,7.292e-05,98075.0,98074.0,0.75436865]
[1739272536300,7.292e-05,98075.0,98074.0,0.76936865]
[1739272536934,7.292e-05,98075.0,98074.0,0.77636865]
[1739272537261,7.292e-05,98075.0,98074.0,0.76936865]
[1739272537614,7.292e-05,98075.0,98074.0,0.77636865]
[1739272537866,7.292e-05,98075.0,98074.0,0.76136865]
[1739272537989,7.292e-05,98075.0,98074.0,0.77636865]
[1739272538396,7.292e-05,98075.0,98074.0,0.78679497]
[1739272539836,7.292e-05,98075.0,98074.0,1.32089497]
[1739272540294,7.292e-05,98075.0,98074.0,1.31089497]
[1739272540430,7.292e-05,98075.0,98074.0,1.32089497]
[1739272541082,7.292e-05,98075.0,98074.0,1.30589497]
[1739272541285,7.292e-05,98075.0,98074.0,1.31948013]
[1739272541444,7.292e-05,98075.0,98074.0,1.33448013]
[1739272541631,7.292e-05,98075.0,98074.0,1.34148013]
[1739272541826,7.292e-05,98075.0,98074.0,1.32648013]
[1739272542753,7.292e-05,98075.0,98074.0,1.33448013]
[1739272543181,7.292e-05,98075.0,98074.0,1.34148013]
[1739272543376,7.292e-05,98075.0,98074.0,1.33448013]
[1739272543759,7.292e-05,98075.0,98074.0,1.34148013]
[1739272543930,7.292e-05,98075.0,98074.0,1.31948013]
[1739272544136,7.292e-05,98075.0,98074.0,1.31216013]
[1739272544336,7.292e-05,98075.0,98074.0,1.16416013]
[1739272544593,0.07587292,98075.0,98074.0,1.16416013]
[1739272544805,0.07587292,98075.0,98074.0,0.29803381]
[1739272545015,0.12447292,98075.0,98074.0,0.29803381]
[1739272545156,0.12447292,98075.0,98074.0,0.28303381]
[1739272545594,0.12447292,98075.0,98074.0,0.29803381]
[1739272546400,0.12447292,98075.0,98074.0,0.29103381]
[1739272546602,0.04867292,98075.0,98074.0,0.29103381]
[1739272546803,0.04867292,98075.0,98074.0,0.29803381]
[1739272547018,0.04867292,98075.0,98074.0,0.28303381]
[1739272547347,0.04867292,98075.0,98074.0,0.28903381]
[1739272547491,0.04867292,98075.0,98074.0,0.30303381]
[1739272547697,0.04867292,98075.0,98074.0,0.29003381]
[1739272547903,0.04867292,98075.0,98074.0,0.29703381]
[1739272548100,7.292e-05,98075.0,98074.0,0.29703381]
[1739272548344,7.292e-05,98075.0,98074.0,0.27603381]
[1739272548547,7.292e-05,98075.0,98074.0,0.29103381]
[1739272550022,7.292e-05,98075.0,98074.0,0.27603381]
[1739272550243,7.292e-05,98075.0,98074.0,0.29803381]
[1739272550821,7.292e-05,98075.0,98074.0,0.29003381]
[1739272551028,7.292e-05,98075.0,98074.0,0.29803381]
[1739272551235,7.292e-05,98075.0,98074.0,0.30503381]
[1739272551469,7.292e-05,98075.0,98074.0,0.29003381]
[1739272551679,7.292e-05,98075.0,98074.0,0.60463381]
[1739272551875,7.292e-05,98075.0,98074.0,0.62663381]
[1739272553113,7.292e-05,98075.0,98074.0,0.61263381]
[1739272553330,7.292e-05,98075.0,98074.0,0.59763381]
[1739272553519,7.292e-05,98075.0,98074.0,0.61963381]
[1739272553749,7.292e-05,98075.0,98074.0,0.61263381]
[1739272554093,7.292e-05,98075.0,98074.0,0.59763381]
[1739272554472,7.292e-05,98075.0,98074.0,0.61263381]
[1739272554878,7.292e-05,98075.0,98074.0,0.61963381]
[1739272556614,7.292e-05,98075.0,98074.0,0.61263381]
[1739272556826,7.292e-05,98075.0,98074.0,0.61963381]
[1739272557030,7.292e-05,98075.0,98074.0,0.60485767]
[1739272557165,7.292e-05,98075.0,98074.0,0.61985767]
[1739272559991,7.292e-05,98075.0,98074.0,0.77985767]
[1739272564985,7.292e-05,98075.0,98074.0,0.81168011]
[1739272572495,7.292e-05,98075.0,98074.0,0.80168011]
[1739272572724,7.292e-05,98075.0,98074.0,0.76985767]
[1739272592186,0.07537292,98075.0,98074.0,0.76985767]
[1739272596540,7.292e-05,98075.0,98074.0,0.76985767]
[1739272614406,7.292e-05,98075.0,98074.0,0.49676886]
[1739272614407,0.12877292,98075.0,98074.0,0.49676886]
[1739272614643,0.12877292,98075.0,98074.0,0.64676886]
[1739272615091,0.14790052,98075.0,98074.0,0.64676886]
[1739272615803,0.15746444,98075.0,98074.0,0.62476886]
[1739272616048,0.15746444,98075.0,98074.0,0.63876886]
[1739272617079,0.15746444,98075.0,98074.0,0.31716886]
[1739272617857,0.15746444,98075.0,98074.0,0.32316886]
[1739272619855,0.15746444,98075.0,98074.0,0.02022386]
[1739272620537,0.31040844,98075.0,98074.0,0.02022386]
[1739272621087,0.31040844,98075.0,98074.0,0.00022386]
[1739272621311,0.31040844,98075.0,98074.0,0.00222386]
[1739272621722,0.31040844,98075.0,98074.0,0.00022386]
[1739272621933,0.31040844,98075.0,98074.0,0.00522386]
[1739272622433,0.31040844,98075.0,98074.0,0.00022386]
[1739272622794,0.34396863,98075.0,98074.0,0.00022386]
[1739272624744,0.19102463,98075.0,98074.0,0.00022386]
[1739272625368,0.16046444,98075.0,98074.0,0.15316886]
[1739272625772,0.17573471,98075.0,98074.0,0.15316886]
[1739272626014,0.17273471,98075.0,98074.0,0.15316886]
[1739272627165,0.15946444,98075.0,98074.0,0.15316886]
[1739272627388,0.03076444,98075.0,98074.0,0.15316886]
[1739272627792,0.02876444,98075.0,98074.0,0.15316886]
[1739272628220,0.00963684,98075.0,98074.0,0.15316886]
[1739272628592,0.00963684,98075.0,98074.0,0.25567251]
[1739272628796,0.00963684,98075.0,98074.0,0.25967251]
[1739272629005,0.00963684,98075.0,98074.0,0.27982679]
[1739272629585,7.292e-05,98075.0,98074.0,0.27982679]
[1739272630397,7.292e-05,98075.0,98074.0,0.27782679]
[1739272630605,7.292e-05,98075.0,98074.0,0.28282679]
[1739272651879,7.292e-05,98075.0,98074.0,0.27782679]
[1739272652364,7.292e-05,98075.0,98074.0,0.28182679]
[1739272653032,7.292e-05,98075.0,98074.0,0.27982679]
[1739272653259,7.292e-05,98075.0,98074.0,0.28182679]
[1739272656212,7.292e-05,98075.0,98074.0,0.27782679]
[1739272656657,7.292e-05,98075.0,98074.0,0.28082679]
[1739272656863,7.292e-05,98075.0,98074.0,0.28282679]
[1739272661063,7.292e-05,98075.0,98074.0,0.00722386]
[1739272662087,0.00963302,98075.0,98074.0,0.00722386]
[1739272664420,0.02875094,98075.0,98074.0,0.16016886]
[1739272665600,0.00963302,98075.0,98074.0,0.16016886]
[1739272665911,0.00963302,98075.0,98074.0,0.00722386]
[1739272666542,0.00963302,98075.0,98074.0,0.15816886]
[1739272666764,0.00963302,98075.0,98074.0,0.00522386]
[1739272666953,0.00963302,98075.0,98074.0,0.00622386]
[1739272667159,0.00963302,98075.0,98074.0,0.15916886]
[1739272667394,0.00963302,98075.0,98074.0,0.15416886]
[1739272667577,0.00963302,98075.0,98074.0,0.15616886]
[1739272667954,7.292e-05,98075.0,98074.0,0.15616886]
[1739272668157,0.01918939,98075.0,98074.0,0.15416886]
[1739272668359,0.02874762,98075.0,98074.0,0.15416886]
[1739272668562,0.02874762,98075.0,98074.0,0.15616886]
[1739272669302,0.00963115,98075.0,98074.0,0.15616886]
[1739272670514,0.00963115,98075.0,98074.0,0.00322386]
[1739272670928,0.00963115,98075.0,98074.0,0.15616886]
[1739272671064,0.00963115,98075.0,98074.0,0.00322386]
[1739272671274,0.02874644,98075.0,98074.0,0.00322386]
[1739272673847,0.02874644,98075.0,98074.0,0.15616886]
[1739272674051,0.02874644,98075.0,98074.0,0.00322386]
[1739272675478,0.02874644,98075.0,98074.0,0.15616886]
[1739272676549,0.00963115,98075.0,98074.0,0.15616886]
[1739272677538,0.00963115,98075.0,98074.0,0.00322386]
[1739272678585,0.00963115,98075.0,98074.0,0.15616886]
[1739272679179,0.00963115,98075.0,98074.0,0.00322386]
[1739272679507,0.00963115,98075.0,98074.0,0.15616886]
[1739272679699,0.00963115,98075.0,98074.0,0.00322386]
[1739272680101,0.00963115,98075.0,98074.0,0.00122386]
[1739272680631,0.00963115,98075.0,98074.0,0.00022386]
[1739272681057,0.00963115,98075.0,98074.0,0.00122386]
[1739272681911,0.23927515,98075.0,98074.0,0.00222386]
[1739272683582,0.23927515,98075.0,98074.0,0.00122386]
[1739272683785,0.23927515,98075.0,98074.0,0.00022386]
[1739272683990,0.24027515,98075.0,98074.0,0.00022386]
[1739272684425,0.23927515,98075.0,98074.0,0.00022386]
[1739272684869,0.24027515,98075.0,98074.0,0.00022386]
[1739272685118,0.25055542,98075.0,98074.0,0.00022386]
[1739272686766,0.32327571,98075.0,98074.0,0.00022386]
[1739272686975,0.25055542,98075.0,98074.0,0.00022386]
[1739272687993,0.29715542,98075.0,98074.0,0.00022386]
[1739272689573,0.29615542,98075.0,98074.0,0.00022386]
[1739272689964,0.29915542,98075.0,98074.0,0.00022386]
[1739272690419,0.29615542,98075.0,98074.0,0.00022386]
[1739272690614,0.29915542,98075.0,98074.0,0.00022386]
[1739272700365,0.32215542,98075.0,98074.0,0.00022386]
[1739272700568,0.42465907,98075.0,98074.0,0.00022386]
[1739272700975,0.52716272,98075.0,98074.0,0.00022386]
[1739272701332,0.42465907,98075.0,98074.0,0.00022386]
[1739272701927,0.42165907,98075.0,98074.0,0.00022386]
[1739272702239,0.42465907,98075.0,98074.0,0.00122386]
[1739272703695,0.42465907,98075.0,98074.0,0.00222386]
[1739272706134,0.74695907,98075.0,98074.0,0.00222386]
[1739272708663,0.73740084,98075.0,98074.0,0.00222386]
[1739272709925,0.73740084,98075.0,98074.0,0.00122386]
[1739272710337,0.73740084,98075.0,98074.0,0.00222386]
[1739272710750,0.73740084,98075.0,98074.0,0.00322386]
[1739272710954,0.72712057,98075.0,98074.0,0.00322386]
[1739272711161,0.72712057,98075.0,98074.0,0.00122386]
[1739272711383,0.72712057,98075.0,98074.0,0.00222386]
[1739272711778,0.72412057,98075.0,98074.0,0.00022386]
[1739272711981,0.73512057,98075.0,98074.0,0.00122386]
[1739272712398,0.72412057,98075.0,98074.0,0.00022386]
[1739272712739,0.46634019,98075.0,98074.0,0.00122386]
[1739272713009,0.46634019,98075.0,98074.0,0.00222386]
[1739272713296,0.46634019,98075.0,98074.0,0.00122386]
[1739272713742,0.46634019,98075.0,98074.0,0.00222386]
[1739272713945,0.46634019,98075.0,98074.0,0.00122386]
[1739272714151,0.011,98075.0,98074.0,0.00222386]
[1739272714353,0.011,98075.0,98074.0,0.28436886]
[1739272714586,0.011,98075.0,98074.0,0.38687251]
[1739272714768,0.0001066,98076.0,98075.0,0.233144]
[1739272714994,0.0001066,98076.0,98075.0,0.33564765]
[1739272715919,0.08956365,98090.0,98089.0,0.152922]
[1739272717916,0.08956365,98090.0,98089.0,0.153922]
[1739272718130,0.08956365,98090.0,98089.0,0.155922]
[1739272718725,0.08956365,98090.0,98089.0,0.153922]
[1739272718899,0.08956365,98090.0,98089.0,0.155922]
[1739272719285,0.08956365,98090.0,98089.0,0.152922]
[1739272719812,0.08956365,98090.0,98089.0,0.155922]
[1739272720108,0.15291,98097.0,98091.0,0.152918]
[1739272720339,0.0001789,98093.0,98091.0,0.152919]
[1739272720549,0.0001789,98093.0,98089.0,0.206895]
[1739272720959,0.0001789,98093.0,98090.0,0.152919]
[1739272722941,0.0001789,98093.0,98085.0,0.203903]
[1739272723141,0.0001789,98093.0,98092.0,0.152917]
[1739272723343,0.0001789,98093.0,98091.0,0.152919]
[1739272723592,0.0001789,98093.0,98090.0,0.152919]
[1739272724732,0.0001789,98093.0,98086.0,0.203902]
[1739272724910,0.0001789,98093.0,98089.0,0.152921]
[1739272728319,0.1520919,98095.0,98087.0,0.152924]
[1739272728524,0.1520919,98095.0,98088.0,0.152923]
[1739272729245,0.1520919,98095.0,98086.0,0.203902]
[1739272729477,0.1520919,98095.0,98089.0,0.152921]
[1739272729678,0.1530919,98095.0,98089.0,0.152921]
[1739272730662,0.152914,98094.0,98087.0,0.152925]
[1739272731705,0.153912,98095.0,98088.0,0.152923]
[1739272732258,0.152912,98095.0,98088.0,0.152923]
[1739272733364,0.152915,98094.0,98086.0,0.152925]
[1739272733574,0.152915,98094.0,98087.0,0.152924]
[1739272734914,0.203882,98096.0,98087.0,0.152924]
[1739272735125,0.152916,98093.0,98087.0,0.152924]
[1739272735721,0.152916,98093.0,98086.0,0.152926]
[1739272736030,0.152914,98095.0,98087.0,0.152925]
[1739272736619,0.204882,98096.0,98087.0,0.152925]
[1739272736818,0.152914,98094.0,98087.0,0.153925]
[1739272737480,0.203882,98096.0,98087.0,0.153925]
[1739272737702,0.203865,98104.0,98088.0,0.152923]
[1739272737875,0.152913,98095.0,98088.0,0.152923]
[1739272738075,0.152915,98094.0,98087.0,0.001]
[1739272738355,0.0774,98108.0,98087.0,0.001]
[1739272738633,0.1529,98103.0,98088.0,0.152922]
[1739272738775,0.203865,98104.0,98087.0,0.001]
[1739272738975,0.152905,98100.0,98088.0,0.152922]
[1739272739181,0.152907,98099.0,98087.0,0.152925]
[1739272739566,0.203867,98103.0,98087.0,0.15314886]
[1739272739772,0.0001066,98094.0,98087.0,0.15314886]
[1739272740001,0.0001066,98094.0,98087.0,0.15414886]
[1739272740701,0.0001066,98094.0,98087.0,0.00122386]
[1739272740936,0.0001066,98094.0,98088.0,0.230123]
[1739272741413,0.0001066,98094.0,98088.0,0.0772]
[1739272743934,0.0001066,98094.0,98093.0,0.152916]
[1739272744130,0.0001066,98094.0,98093.0,0.25541965]
[1739272744350,0.0001066,98094.0,98093.0,0.33261965]
[1739272745691,0.0001066,98094.0,98093.0,0.33561965]
[1739272745868,0.0001066,98094.0,98093.0,0.34261965]
[1739272747682,0.0001066,98094.0,98093.0,0.66421965]
[1739272752966,0.0001066,98094.0,98093.0,0.561716]
[1739272753571,0.0001066,98094.0,98093.0,0.240116]
[1739272754962,0.0001066,98094.0,98093.0,0.162916]
[1739272760344,0.0001066,98094.0,98093.0,0.26541965]
[1739272760907,0.0001066,98094.0,98093.0,0.27578272]
[1739272761109,0.0001066,98094.0,98093.0,0.35168272]
[1739272763188,0.0001066,98094.0,98093.0,0.39968272]
[1739272764516,0.0001066,98094.0,98093.0,0.39990658]
[1739272765738,0.0001066,98094.0,98093.0,0.72150658]
[1739272766516,0.0001066,98094.0,98093.0,0.87150658]
[1739272767303,0.0001066,98094.0,98093.0,0.86850658]
[1739272767752,0.0001066,98094.0,98093.0,0.86150658]
[1739272768508,0.0001066,98094.0,98093.0,0.87150658]
[1739272768938,0.0001066,98094.0,98093.0,0.90325238]
[1739272769147,0.0001066,98094.0,98093.0,0.91025238]
[1739272769332,0.0001066,98094.0,98093.0,0.92525238]
[1739272769537,6e-07,98094.0,98093.0,1.48235238]
[1739272770617,6e-07,98094.0,98093.0,1.46735238]
[1739272770758,6e-07,98094.0,98093.0,1.47535238]
[1739272772289,6e-07,98094.0,98093.0,1.48235238]
[1739272775098,6e-07,98094.0,98093.0,1.47535238]
[1739272775344,6e-07,98094.0,98093.0,1.46035238]
[1739272775576,6e-07,98094.0,98093.0,1.48235238]
[1739272776009,6e-07,98094.0,98093.0,1.46735238]
[1739272776215,6e-07,98094.0,98093.0,1.48235238]
[1739272784895,6e-07,98094.0,98093.0,1.46035238]
[1739272785144,6e-07,98094.0,98093.0,1.47535238]
[1739272785347,6e-07,98094.0,98093.0,1.48235238]
[1739272789556,6e-07,98094.0,98093.0,1.46035238]
[1739272789777,6e-07,98094.0,98093.0,1.46735238]
[1739272790857,6e-07,98094.0,98093.0,1.48235238]
[1739272791055,6e-07,98094.0,98093.0,1.47535238]
[1739272791256,6e-07,98094.0,98093.0,1.46735238]
[1739272791672,6e-07,98094.0,98093.0,1.48235238]
[1739272797807,6e-07,98094.0,98093.0,1.35845238]
[1739272798017,6e-07,98094.0,98093.0,1.36577238]
[1739272800737,6e-07,98094.0,98093.0,1.32545238]
[1739272800981,6e-07,98094.0,98093.0,0.79135238]
[1739272801192,0.0778006,98094.0,98093.0,0.79867238]
[1739272801348,0.0778006,98094.0,98093.0,0.64867238]
[1739272801555,0.0778006,98094.0,98093.0,0.61692658]
[1739272801759,6e-07,98094.0,98093.0,0.61692658]
[1739272802183,6e-07,98094.0,98093.0,0.74492658]
[1739272802565,6e-07,98094.0,98093.0,0.75992658]
[1739272802981,6e-07,98094.0,98093.0,0.76692658]
[1739272803599,6e-07,98094.0,98093.0,0.79873356]
[1739272805264,6e-07,98094.0,98093.0,0.76692658]
[1739272806762,6e-07,98094.0,98093.0,0.74924351]
[1739272815770,6e-07,98094.0,98093.0,0.7810214]
[1739272816350,6e-07,98094.0,98093.0,0.7910214]
[1739272816758,6e-07,98094.0,98093.0,0.8751214]
[1739272817173,6e-07,98094.0,98093.0,0.8971214]
[1739272817692,6e-07,98094.0,98093.0,0.8821214]
[1739272818250,6e-07,98094.0,98093.0,0.8971214]
[1739272818451,6e-07,98094.0,98093.0,0.8901214]
[1739272818787,6e-07,98094.0,98093.0,0.8971214]
[1739272819631,6e-07,98094.0,98093.0,0.8821214]
[1739272820131,6e-07,98094.0,98093.0,0.8971214]
[1739272822052,6e-07,98094.0,98093.0,1.4312214]
[1739272843122,6e-07,98094.0,98093.0,1.4385414]
[1739272843624,6e-07,98094.0,98093.0,1.4312214]
[1739272843838,6e-07,98094.0,98093.0,1.4385414]
[1739272848781,6e-07,98094.0,98093.0,1.3554414]
[1739272849542,6e-07,98094.0,98093.0,1.4941614]
[1739272852384,0.0466,98112.0,98103.0,0.01]
[1739272852600,6e-07,98105.0,98104.0,0.48119869]
[1739272852808,6e-07,98105.0,98104.0,0.48017954]
[1739272854929,6e-07,98105.0,98104.0,0.48717954]
[1739272856157,6e-07,98105.0,98104.0,0.51246046]
[1739272857428,6e-07,98105.0,98104.0,0.49746046]
[1739272857585,6e-07,98105.0,98104.0,1.34616046]
[1739272857946,6e-07,98105.0,98104.0,1.36816046]
[1739272858157,6e-07,98105.0,98104.0,1.35316046]
[1739272858556,6e-07,98105.0,98104.0,1.37516046]
[1739272858759,6e-07,98105.0,98104.0,1.36116046]
[1739272858960,6e-07,98105.0,98104.0,1.34616046]